fUST/lending_fUST_20250301
["ID","MTS","AMOUNT","RATE_DAILY","PERIOD"]
[354910325,1740811876133,-512.84479477,0.00039616,2]
[354910326,1740811876143,-500.0,0.00039616,2]
[354910327,1740811876154,-1193.13,0.00039616,2]
[354910328,1740811876163,-1310.15,0.00039616,2]
[354910329,1740811876173,-662.53,0.00039616,2]
[354910330,1740811876184,-595.32,0.00039616,2]
[354910331,1740811876194,-659.69,0.00039616,2]
[354910332,1740811876209,-620.12,0.00039616,2]
[354910333,1740811876225,-1697.33,0.00039616,2]
[354910334,1740811876240,-623.34,0.00039616,2]
[354910335,1740811876251,-328.47959349,0.00039616,2]
[354910336,1740811876261,-615.17,0.00039616,2]
[354910337,1740811876271,-1472.11,0.00039616,2]
[354910338,1740811876281,-500.0,0.00039616,2]
[354910339,1740811876291,-500.0,0.00039616,2]
[354910340,1740811876301,-858.45234816,0.00039616,60]
[354910341,1740811876311,-500.0,0.00039616,2]
[354910342,1740811876322,-500.0,0.00039616,2]
[354910343,1740811876332,-500.0,0.00039616,2]
[354910344,1740811876345,-500.0,0.00039616,2]
[354910345,1740811876355,-1810.15,0.00039616,2]
[354910346,1740811876365,-1341.57,0.00039616,2]
[354910347,1740811876375,-500.0,0.00039616,2]
[354910348,1740811876386,-512.86,0.00039616,2]
[354910349,1740811876396,-500.0,0.00039616,2]
[354910350,1740811876406,-500.0,0.00039616,2]
[354910351,1740811876416,-500.0,0.00039616,2]
[354910352,1740811876426,-500.0,0.00039616,2]
[354910353,1740811876436,-747.13,0.00039616,2]
[354910354,1740811876446,-500.0,0.00039616,2]
[354910355,1740811876456,-500.0,0.00039616,2]
[354910356,1740811876466,-500.0,0.00039616,2]
[354910357,1740811876476,-500.0,0.00039616,2]
[354910358,1740811876487,-500.0,0.00039616,2]
[354910359,1740811876497,-992.96,0.00039616,2]
[354910360,1740811876507,-500.0,0.00039616,2]
[354910361,1740811876517,-500.0,0.00039616,2]
[354910362,1740811876527,-2306.22,0.00039616,2]
[354910363,1740811876537,-2168.4,0.00039616,2]
[354910364,1740811876547,-500.0,0.00039616,2]
[354910365,1740811876557,-500.0,0.00039616,2]
[354910366,1740811876567,-1350.29,0.00039616,2]
[354910367,1740811876577,-500.0,0.00039616,2]
[354910368,1740811876587,-658.62,0.00039616,2]
[354910369,1740811876597,-580.75058238,0.00039616,2]
[354910370,1740811876608,-1048.64,0.00039616,2]
[354910371,1740811876618,-500.0,0.00039616,2]
[354910372,1740811876629,-500.0,0.00039616,2]
[354910373,1740811876640,-500.0,0.00039616,2]
[354910374,1740811876650,-9075.31,0.00039616,2]
[354910375,1740811876660,-956.44,0.00039616,2]
[354910376,1740811876671,-500.0,0.00039616,2]
[354910377,1740811876681,-500.0,0.00039616,2]
[354910378,1740811876692,-560.74,0.00039616,2]
[354910379,1740811876702,-18626.62,0.00039616,2]
[354910380,1740811876712,-500.0,0.00039616,2]
[354910381,1740811876723,-500.0,0.00039616,2]
[354910382,1740811876733,-1182.87,0.00039616,2]
[354910383,1740811876743,-2053.76,0.00039616,2]
[354910384,1740811876752,-500.0,0.00039616,2]
[354910385,1740811876763,-695.97,0.00039616,2]
[354910386,1740811876773,-1685.76,0.00039616,2]
[354910387,1740811876783,-863.98,0.00039616,2]
[354910388,1740811876793,-2745.23,0.00039616,2]
[354910389,1740811876803,-500.0,0.00039616,2]
[354910390,1740811876814,-4158.89,0.00039616,2]
[354910391,1740811876825,-500.0,0.00039616,2]
[354910392,1740811876835,-500.0,0.00039616,2]
[354910393,1740811876845,-2470.32,0.00039616,2]
[354910394,1740811876856,-515.40273893,0.00039616,2]
[354910395,1740811876866,-266057.92,0.00039616,2]
[354910396,1740811876876,-2772.96,0.00039616,2]
[354910397,1740811876886,-1017.39,0.00039616,2]
[354910398,1740811876896,-5344.3,0.00039616,2]
[354910399,1740811876906,-500.0,0.00039616,2]
[354910400,1740811876916,-683.56,0.00039616,2]
[354910401,1740811876926,-508.22,0.00039616,2]
[354910402,1740811876936,-6875.96,0.00039616,2]
[354910403,1740811876946,-500.0,0.00039616,2]
[354910404,1740811876956,-915.39,0.00039616,2]
[354910405,1740811876966,-500.0,0.00039616,2]
[354910406,1740811876976,-500.0,0.00039616,2]
[354910407,1740811876985,-706.78,0.00039616,2]
[354910408,1740811876996,-997.14,0.00039616,2]
[354910409,1740811877006,-500.0,0.00039616,2]
[354910410,1740811877016,-15521.13,0.00039616,2]
[354910411,1740811877028,-500.0,0.00039616,2]
[354910412,1740811877039,-819.72,0.00039616,2]
[354910413,1740811877048,-970.91,0.00039616,2]
[354910414,1740811877058,-3646.95,0.00039616,2]
[354910415,1740811877067,-818.66,0.00039616,2]
[354910416,1740811877077,-2463.49,0.00039616,2]
[354910417,1740811877087,-4045.94,0.00039616,2]
[354910418,1740811877097,-500.0,0.00039616,2]
[354910419,1740811877107,-500.0,0.00039616,2]
[354910420,1740811877116,-300.0,0.00039616,120]
[354910421,1740811877126,-484.35393846,0.00039616,30]
[354910422,1740811877135,-854.31,0.00039617,2]
[354910423,1740811877145,-500.0,0.00039617,2]
[354910424,1740811877155,-990.59,0.00039617,2]
[354910425,1740811877164,-500.0,0.00039617,2]
[354910426,1740811877174,-500.0,0.00039617,2]
[354910427,1740811877184,-500.0,0.00039617,2]
[354910428,1740811877194,-500.0,0.00039617,2]
[354910429,1740811877203,-552.52,0.00039617,2]
[354910430,1740811877214,-1335.56,0.00039617,2]
[354910431,1740811877224,-500.0,0.00039617,2]
[354910432,1740811877235,-655.98,0.00039617,2]
[354910433,1740811877244,-500.0,0.00039617,2]
[354910434,1740811877254,-500.0,0.00039617,2]
[354910435,1740811877264,-730.11,0.00039617,2]
[354910436,1740811877275,-500.0,0.00039617,2]
[354910437,1740811877285,-1049.08,0.00039617,2]
[354910438,1740811877295,-2324.69,0.00039617,2]
[354910439,1740811877306,-1822.6,0.00039617,2]
[354910440,1740811877317,-500.0,0.00039617,2]
[354910441,1740811877327,-500.0,0.00039617,2]
[354910442,1740811877338,-212.34674035,0.00039617,2]
[354910443,1740811877349,-500.0,0.00039617,2]
[354910444,1740811877358,-500.0,0.00039617,2]
[354910445,1740811877368,-500.0,0.00039617,2]
[354910446,1740811877379,-500.0,0.00039617,2]
[354910447,1740811877389,-500.0,0.00039617,2]
[354910448,1740811877399,-500.0,0.00039617,2]
[354910449,1740811877410,-800.36,0.00039617,2]
[354910450,1740811877420,-500.0,0.00039617,2]
[354910451,1740811877431,-500.0,0.00039617,2]
[354910452,1740811877441,-500.0,0.00039617,2]
[354910453,1740811877451,-500.0,0.00039617,2]
[354910454,1740811877461,-500.0,0.00039617,2]
[354910455,1740811877471,-500.0,0.00039617,2]
[354910456,1740811877481,-500.0,0.00039617,2]
[354910457,1740811877491,-500.0,0.00039617,2]
[354910458,1740811877501,-500.0,0.00039617,2]
[354910459,1740811877511,-318.20195733,0.00039617,2]
[354910460,1740811877521,-500.0,0.00039617,2]
[354910461,1740811877531,-500.0,0.00039617,2]
[354910462,1740811877540,-517.81555958,0.00039617,2]
[354910463,1740811877550,-500.0,0.00039617,2]
[354910464,1740811877560,-500.0,0.00039617,2]
[354910465,1740811877570,-841.87,0.00039617,2]
[354910466,1740811877580,-500.0,0.00039617,2]
[354910467,1740811877591,-500.0,0.00039617,2]
[354910468,1740811877602,-1050.89,0.00039617,2]
[354910469,1740811877612,-1599.92,0.00039617,2]
[354910470,1740811877622,-500.0,0.00039617,2]
[354910471,1740811877632,-500.0,0.00039617,2]
[354910472,1740811877648,-500.0,0.00039617,2]
[354910473,1740811877659,-593.34,0.00039617,2]
[354910474,1740811877670,-434.92618331,0.00039617,2]
[354910475,1740811877681,-500.0,0.00039617,2]
[354910476,1740811877692,-500.0,0.00039617,2]
[354910477,1740811877702,-500.0,0.00039617,2]
[354910478,1740811877713,-500.0,0.00039617,2]
[354910479,1740811877724,-500.0,0.00039617,2]
[354910480,1740811877735,-167.5383512,0.00039617,2]
[354910481,1740811877745,-841.42,0.00039617,2]
[354910482,1740811877756,-500.0,0.00039617,2]
[354910483,1740811877766,-500.0,0.00039617,2]
[354910484,1740811877776,-986.63,0.00039617,2]
[354910485,1740811877787,-500.0,0.00039617,2]
[354910486,1740811877797,-500.0,0.00039617,2]
[354910487,1740811877807,-625.66,0.00039617,2]
[354910488,1740811877818,-500.0,0.00039617,2]
[354910489,1740811877828,-500.0,0.00039617,2]
[354910490,1740811877839,-500.0,0.00039617,2]
[354910491,1740811877849,-500.0,0.00039617,2]
[354910492,1740811877859,-500.0,0.00039617,2]
[354910493,1740811877870,-500.0,0.00039617,2]
[354910494,1740811877880,-513.46,0.00039617,2]
[354910495,1740811877890,-500.0,0.00039617,2]
[354910496,1740811877900,-500.0,0.00039617,2]
[354910497,1740811877911,-502.92972512,0.00039617,2]
[354910498,1740811877921,-518.21063974,0.00039617,2]
[354910499,1740811877931,-1195.39,0.00039617,2]
[354910500,1740811877942,-214.74265609,0.00039617,2]
[354910501,1740811877951,-639.14,0.00039617,2]
[354910502,1740811877962,-500.0,0.00039617,2]
[354910503,1740811877972,-500.0,0.00039617,2]
[354910504,1740811877982,-500.0,0.00039617,2]
[354910505,1740811877992,-500.0,0.00039617,2]
[354910506,1740811878002,-500.0,0.00039617,2]
[354910507,1740811878012,-500.0,0.00039617,2]
[354910508,1740811878022,-520.56,0.00039617,2]
[354910509,1740811878034,-503.60124686,0.00039617,2]
[354910510,1740811878047,-500.0,0.00039617,2]
[354910511,1740811878058,-500.0,0.00039617,2]
[354910512,1740811878069,-764.61,0.00039617,2]
[354910513,1740811878079,-500.0,0.00039617,2]
[354910514,1740811878089,-500.0,0.00039617,2]
[354910515,1740811878100,-500.0,0.00039617,2]
[354910516,1740811878110,-500.0,0.00039617,2]
[354910517,1740811878121,-500.0,0.00039617,2]
[354910518,1740811878131,-500.0,0.00039617,2]
[354910519,1740811878142,-500.0,0.00039617,2]
[354910520,1740811878152,-662.8,0.00039617,2]
[354910521,1740811878162,-505.87870808,0.00039617,2]
[354910522,1740811878173,-500.0,0.00039617,2]
[354910523,1740811878183,-502.93729605,0.00039617,2]
[354910524,1740811878193,-1110.06,0.00039617,2]
[354910525,1740811878203,-500.0,0.00039617,2]
[354910526,1740811878212,-500.0,0.00039617,2]
[354910527,1740811878222,-500.0,0.00039617,2]
[354910528,1740811878232,-1699.94,0.00039617,2]
[354910529,1740811878243,-500.0,0.00039617,2]
[354910530,1740811878252,-500.0,0.00039617,2]
[354910531,1740811878262,-320.33427749,0.00039617,2]
[354910532,1740811878272,-1267.13,0.00039617,2]
[354910533,1740811878282,-500.0,0.00039617,2]
[354910534,1740811878292,-500.0,0.00039617,2]
[354910535,1740811878302,-500.0,0.00039617,2]
[354910536,1740811878312,-500.0,0.00039617,2]
[354910537,1740811878548,-500.0,0.00039617,2]
[354910538,1740811878571,-1818.91,0.00039617,2]
[354910539,1740811878581,-500.0,0.00039617,2]
[354910540,1740811878593,-500.0,0.00039617,2]
[354910541,1740811878603,-500.0,0.00039617,2]
[354910542,1740811878614,-500.0,0.00039617,2]
[354910543,1740811878624,-500.0,0.00039617,2]
[354910544,1740811878634,-554.32,0.00039617,2]
[354910545,1740811878644,-500.0,0.00039617,2]
[354910546,1740811878655,-257.61973691,0.00039617,2]
[354910547,1740811878664,-504.32897292,0.00039617,2]
[354910548,1740811878674,-500.0,0.00039617,2]
[354910549,1740811878684,-500.0,0.00039617,2]
[354910550,1740811878694,-500.0,0.00039617,2]
[354910551,1740811878704,-500.0,0.00039617,2]
[354910552,1740811878715,-1297.64,0.00039617,2]
[354910553,1740811878724,-500.0,0.00039617,2]
[354910554,1740811878734,-506.83886918,0.00039617,2]
[354910555,1740811878744,-500.0,0.00039617,2]
[354910556,1740811878754,-500.0,0.00039617,2]
[354910557,1740811878764,-500.0,0.00039617,2]
[354910558,1740811878774,-500.0,0.00039617,2]
[354910559,1740811878784,-684.42,0.00039617,120]
[354910560,1740811878794,-570.29,0.00039617,2]
[354910561,1740811878803,-500.0,0.00039617,2]
[354910562,1740811878814,-500.0,0.00039617,2]
[354910563,1740811878824,-500.0,0.00039617,2]
[354910564,1740811878834,-500.0,0.00039617,2]
[354910565,1740811878848,-600.75,0.00039617,2]
[354910566,1740811878858,-500.0,0.00039617,2]
[354910567,1740811878867,-500.0,0.00039617,2]
[354910568,1740811878877,-1477.34,0.00039617,2]
[354910569,1740811878887,-500.0,0.00039617,2]
[354910570,1740811878896,-500.0,0.00039617,2]
[354910571,1740811878906,-500.0,0.00039617,2]
[354910572,1740811878915,-500.0,0.00039617,2]
[354910573,1740811878925,-507.09806927,0.00039617,2]
[354910574,1740811878934,-2241.07,0.00039617,2]
[354910575,1740811878944,-500.0,0.00039617,2]
[354910576,1740811878953,-500.0,0.00039617,2]
[354910577,1740811878962,-511.03981427,0.00039617,2]
[354910578,1740811878972,-500.0,0.00039617,2]
[354910579,1740811878981,-410.346135,0.00039617,2]
[354910580,1740811878991,-574.52,0.00039617,2]
[354910581,1740811879000,-504.6651435,0.00039617,2]
[354910582,1740811879010,-871.43,0.00039617,2]
[354910583,1740811879019,-794.28,0.00039617,2]
[354910584,1740811879030,-500.0,0.00039617,2]
[354910585,1740811879041,-1259.88,0.00039617,2]
[354910586,1740811879051,-1966.72,0.00039617,2]
[354910587,1740811879060,-500.0,0.00039617,2]
[354910588,1740811879071,-500.0,0.00039617,2]
[354910589,1740811879080,-500.0,0.00039617,2]
[354910590,1740811879092,-897.15,0.00039617,2]
[354910591,1740811879102,-503.38725626,0.00039617,2]
[354910592,1740811879111,-1000.0,0.00039617,2]
[354910593,1740811879122,-500.0,0.00039617,2]
[354910594,1740811879132,-762.81,0.00039617,2]
[354910595,1740811879141,-500.0,0.00039617,2]
[354910596,1740811879151,-500.0,0.00039617,2]
[354910597,1740811879160,-500.0,0.00039617,2]
[354910598,1740811879170,-350.0,0.00039633,14]
[354910599,1740811879180,-336.1280879,0.00039633,14]
[354910600,1740811879190,-500.0,0.00039643,2]
[354910601,1740811879200,-1826.34,0.00039643,5]
[354910602,1740811879209,-1664.15,0.00039643,2]
[354910603,1740811879219,-2301.74,0.00039643,2]
[354910604,1740811879229,-1601.23,0.00039643,2]
[354910605,1740811879238,-150.0,0.00039665,14]
[354910606,1740811879248,-150.0,0.00039665,14]
[354910607,1740811879258,-200.0,0.00039688,7]
[354910608,1740811879268,-513.72178489,0.00039708,2]
[354910609,1740811879278,-500.0,0.00039708,2]
[354910610,1740811879288,-500.0,0.00039708,2]
[354910611,1740811879298,-505.32427382,0.00039708,2]
[354910612,1740811879308,-500.0,0.00039708,2]
[354910613,1740811879318,-357.93326803,0.00039708,2]
[354910614,1740811879328,-613.02843073,0.00039708,2]
[354910615,1740811879339,-500.0,0.00039708,2]
[354910616,1740811879349,-500.0,0.00039708,2]
[354910617,1740811879359,-500.0,0.00039708,2]
[354910618,1740811879368,-500.0,0.00039708,2]
[354910619,1740811879378,-500.0,0.00039708,2]
[354910620,1740811879387,-460.40740218,0.00039708,2]
[354910621,1740811879396,-501.38460616,0.00039708,2]
[354910622,1740811879406,-500.0,0.00039708,2]
[354910623,1740811879416,-507.24551037,0.00039708,2]
[354910624,1740811879425,-586.15075589,0.00039708,2]
[354910625,1740811879435,-500.0,0.00039708,2]
[354910626,1740811879444,-513.64365709,0.00039708,2]
[354910627,1740811879454,-500.0,0.00039708,2]
[354910628,1740811879463,-505.40828293,0.00039708,2]
[354910629,1740811879473,-503.29367334,0.00039708,2]
[354910630,1740811879482,-517.12662447,0.00039708,2]
[354910631,1740811879491,-500.0,0.00039708,2]
[354910632,1740811879501,-153.76715891,0.00039708,2]
[354910633,1740811879510,-500.0,0.00039708,2]
[354910634,1740811879519,-510.64557622,0.00039708,2]
[354910635,1740811879529,-500.0,0.00039708,2]
[354910636,1740811879539,-500.0,0.00039708,2]
[354910637,1740811879548,-500.0,0.00039708,2]
[354910638,1740811879558,-500.0,0.00039708,2]
[354910639,1740811879568,-500.0,0.00039708,2]
[354910640,1740811879578,-500.0,0.00039708,2]
[354910641,1740811879589,-500.0,0.00039708,2]
[354910642,1740811879598,-992.69,0.00039708,2]
[354910643,1740811879608,-500.0,0.00039708,2]
[354910644,1740811879618,-500.0,0.00039708,2]
[354910645,1740811879628,-447.37599512,0.00039708,2]
[354910646,1740811879638,-801.03,0.00039708,2]
[354910647,1740811879647,-500.0,0.00039708,2]
[354910648,1740811879657,-500.0,0.00039708,2]
[354910649,1740811879667,-500.0,0.00039708,2]
[354910650,1740811879676,-500.0,0.00039708,2]
[354910651,1740811879686,-1279.5,0.00039708,2]
[354910652,1740811879696,-309.19359549,0.00039708,2]
[354910653,1740811879705,-500.0,0.00039708,2]
[354910654,1740811879714,-500.0,0.00039708,2]
[354910655,1740811879724,-502.77093405,0.00039708,2]
[354910656,1740811879733,-500.0,0.00039708,2]
[354910657,1740811879743,-228.35587799,0.00039708,2]
[354910658,1740811879752,-500.0,0.00039708,2]
[354910659,1740811879762,-775.13,0.00039708,2]
[354910660,1740811879771,-500.0,0.00039708,2]
[354910661,1740811879780,-1407.2,0.00039708,2]
[354910662,1740811879789,-509.27511864,0.00039708,2]
[354910663,1740811879798,-864.31,0.00039708,2]
[354910664,1740811879808,-500.0,0.00039708,2]
[354910665,1740811879817,-500.0,0.00039708,2]
[354910666,1740811879826,-500.0,0.00039708,2]
[354910667,1740811879836,-500.0,0.00039708,2]
[354910668,1740811879846,-680.96,0.00039708,2]
[354910669,1740811879855,-500.0,0.00039708,2]
[354910670,1740811879864,-500.0,0.00039708,2]
[354910671,1740811879874,-527.73,0.00039708,2]
[354910672,1740811879884,-500.0,0.00039708,2]
[354910673,1740811879893,-491.93756806,0.00039708,2]
[354910674,1740811879903,-500.0,0.00039708,2]
[354910675,1740811879912,-500.0,0.00039708,2]
[354910676,1740811879922,-500.0,0.00039708,2]
[354910677,1740811879931,-500.0,0.00039708,2]
[354910678,1740811879940,-505.69068421,0.00039708,2]
[354910679,1740811879950,-500.0,0.00039708,2]
[354910680,1740811879959,-500.0,0.00039708,2]
[354910681,1740811879968,-1418.54,0.00039708,2]
[354910682,1740811879979,-500.0,0.00039708,2]
[354910683,1740811879989,-500.0,0.00039708,2]
[354910684,1740811879999,-500.0,0.00039708,2]
[354910685,1740811880008,-500.0,0.00039708,2]
[354910686,1740811880018,-500.0,0.00039708,2]
[354910687,1740811880028,-521.32,0.00039708,2]
[354910688,1740811880040,-500.0,0.00039708,2]
[354910689,1740811880049,-500.0,0.00039708,2]
[354910690,1740811880059,-770.48,0.00039708,2]
[354910691,1740811880068,-500.0,0.00039708,2]
[354910692,1740811880079,-859.08,0.00039708,2]
[354910693,1740811880088,-500.0,0.00039708,2]
[354910694,1740811880098,-1433.51,0.00039708,2]
[354910695,1740811880107,-634.47852463,0.00039708,2]
[354910696,1740811880119,-979.76,0.00039708,2]
[354910697,1740811880128,-1583.17,0.00039708,2]
[354910698,1740811880138,-1276.83,0.00039708,2]
[354910699,1740811880149,-711.73,0.00039708,2]
[354910700,1740811880159,-536.79,0.00039708,2]
[354910701,1740811880169,-500.0,0.00039708,2]
[354910702,1740811880180,-1144.76,0.00039708,2]
[354910703,1740811880190,-500.0,0.00039708,2]
[354910704,1740811880200,-586.92,0.00039708,2]
[354910705,1740811880210,-1953.34,0.00039708,2]
[354910706,1740811880221,-500.0,0.00039708,2]
[354910707,1740811880231,-1540.43,0.00039708,2]
[354910708,1740811880241,-500.0,0.00039708,2]
[354910709,1740811880251,-527.41,0.00039708,2]
[354910710,1740811880261,-2654.46,0.00039708,2]
[354910711,1740811880270,-187.38843861,0.00039708,2]
[354910712,1740811880693,730.1,0.00036747,2]
[354910713,1740811880707,-312.61156139,0.00039708,2]
[354910714,1740811880717,-686.52,0.00039708,2]
[354910715,1740811880728,-318.6466555,0.00039708,2]
[354910716,1740811880739,-181.3533445,0.00039708,2]
[354910717,1740811880750,-500.0,0.00039708,2]
[354910718,1740811880760,-1160.72089423,0.00039708,2]
[354910719,1740811880772,-6776.70910577,0.00039708,2]
[354910720,1740811880781,-946.95,0.00039708,2]
[354910721,1740811880791,-500.0,0.00039708,2]
[354910722,1740811880802,-500.0,0.00039708,2]
[354910723,1740811880812,-500.0,0.00039708,2]
[354910724,1740811880821,-793.75,0.00039708,2]
[354910725,1740811880831,-500.0,0.00039708,2]
[354910726,1740811880843,-500.0,0.00039708,2]
[354910727,1740811880853,-500.0,0.00039708,2]
[354910728,1740811880863,-500.0,0.00039708,2]
[354910729,1740811880873,-500.0,0.00039708,2]
[354910730,1740811880883,-500.0,0.00039708,2]
[354910731,1740811880893,-500.0,0.00039708,2]
[354910732,1740811880968,-576.25,0.00039708,2]
[354910733,1740811880978,-500.0,0.00039708,2]
[354910734,1740811880988,-500.0,0.00039708,2]
[354910735,1740811880997,-500.0,0.00039708,2]
[354910736,1740811881008,-500.0,0.00039708,2]
[354910737,1740811881018,-500.0,0.00039708,2]
[354910738,1740811881029,-519.34824033,0.00039708,2]
[354910739,1740811881040,-160.85849003,0.00039708,2]
[354910740,1740811881052,-339.14150997,0.00039708,2]
[354910741,1740811881061,-500.0,0.00039708,2]
[354910742,1740811881071,-998.20873959,0.00039708,2]
[354910743,1740811881083,-959.82126041,0.00039708,2]
[354910744,1740811881094,-2040.17873959,0.00039708,2]
[354910745,1740811881107,-328.43126041,0.00039708,2]
[354910746,1740811881118,-802.81690544,0.00039708,2]
[354910747,1740811884221,150.0,0.00036868,2]
[354910748,1740811888392,500.0,0.00036199,2]
[354910749,1740811888454,500.0,0.00036473,2]
[354910750,1740811891267,500.0,0.00036199,2]
[354910751,1740811891503,500.0,0.00036473,2]
[354910752,1740811897762,500.0,0.00036747,2]
[354910753,1740811906605,19624.61182001,0.00026,3]
[354910754,1740811907892,1829.65,0.00036199,2]
[354910755,1740811908146,1829.65,0.00036473,2]
[354910756,1740811908388,1829.65,0.00036747,2]
[354910757,1740811915309,10000.0,0.0003,10]
[354910758,1740811919412,500.0,0.00036199,2]
[354910759,1740811919675,500.0,0.00036473,2]
[354910762,1740812742727,3000.0,0.0003,7]
[354910763,1740812833161,-162.1196155,0.00032152,2]
[354910764,1740812833187,-459.8594818,0.0003234,64]
[354910765,1740812833211,-500.0,0.00032876,2]
[354910766,1740812833234,-500.0,0.00032876,2]
[354910767,1740812833259,-69.73286928,0.00034036,2]
[354910768,1740812843133,-40001.89031628,0.000285,2]
[354910769,1740812843155,-1379.79960707,0.00034036,2]
[354910770,1740812843177,-232.3792632,0.00034245,2]
[354910771,1740812843201,-500.0,0.00034246,7]
[354910772,1740812843223,-500.0,0.00034246,7]
[354910773,1740812843248,-500.0,0.00034246,7]
[354910774,1740812843272,-500.0,0.00034246,2]
[354910775,1740812843297,-500.0,0.00034246,2]
[354910776,1740812843322,-500.0,0.00034246,7]
[354910777,1740812843350,-500.0,0.00034246,2]
[354910778,1740812843373,-500.0,0.00034246,7]
[354910779,1740812843399,-500.0,0.00034246,2]
[354910780,1740812843423,-249.6632898,0.00034246,2]
[354910781,1740812843449,-500.0,0.00034246,7]
[354910782,1740812843474,-500.0,0.00034246,2]
[354910783,1740812843498,-500.0,0.00034246,7]
[354910784,1740812843522,-500.0,0.00034246,2]
[354910785,1740812843546,-200.0,0.00034246,7]
[354910786,1740812843570,-500.0,0.00034246,2]
[354910787,1740812843596,-500.0,0.00034246,2]
[354910788,1740812843620,-500.0,0.00034246,2]
[354910789,1740812843644,-500.0,0.00034246,2]
[354910790,1740812843669,-500.0,0.00034246,2]
[354910791,1740812843694,-500.0,0.00034246,2]
[354910792,1740812843716,-500.0,0.00034246,2]
[354910793,1740812843737,-261.59417179,0.00034246,2]
[354910794,1740812843759,-24168.63078092,0.00034247,2]
[354910795,1740812850083,-1231.20840788,0.00034247,2]
[354910796,1740812854098,-449.49427123,0.00034247,2]
[354910797,1740812878206,322.64,0.000295,7]
[354910798,1740812953132,-500.0,0.00029473,5]
[354910799,1740812953154,-500.0,0.00029473,5]
[354910800,1740812953178,-500.0,0.00029499,2]
[354910801,1740812953200,-500.0,0.00029499,2]
[354910802,1740812953223,-393.52138016,0.00029499,2]
[354910803,1740812953245,-646.74243516,0.00029499,2]
[354910804,1740812953266,-201.915,0.00029499,2]
[354910805,1740812953290,-500.0,0.00029499,2]
[354910806,1740812953313,-300.0,0.00029499,2]
[354910807,1740812953338,-194.4070322,0.00029499,2]
[354910808,1740812953361,-350148.27515813,0.000295,2]
[354910809,1740812953396,-500.0,0.00034246,2]
[354910810,1740812953423,-500.0,0.00034246,2]
[354910811,1740812953445,-434.20525171,0.0003425,2]
[354910812,1740812953466,-2957.32,0.000343,30]
[354910813,1740812953487,-98561.31,0.000343,30]
[354910814,1740812953508,-203.91797654,0.0003435,2]
[354910815,1740812953530,-1151.32,0.000344,30]
[354910816,1740812953552,-181.54323175,0.0003445,2]
[354910817,1740812953574,-5373.89,0.000345,30]
[354910818,1740812953596,-1000.0,0.0003455,3]
[354910819,1740812953618,-164.1653,0.00034584,2]
[354910820,1740812953641,-203.67165228,0.000349,7]
[354910821,1740812953663,-203.91797654,0.00034924,2]
[354910822,1740812953685,-293.2284492,0.00034952,5]
[354910823,1740812953707,-1000.0,0.00034952,5]
[354910824,1740812953728,-500.0,0.00035,2]
[354910825,1740812953751,-181.54323171,0.00035393,2]
[354910826,1740812953773,-203.91797654,0.00035498,2]